[Event "DVM U14 2021"]
[Site "Willingen"]
[Date "2022.08.16"]
[Round "7"]
[White "Wedekind, Ferdinand"]
[Black "Malan, Jan-Willem"]
[Result "1-0"]
[ECO "D05"]
[WhiteElo "1446"]
[BlackElo "1747"]
[Annotator "NA RC"]
[PlyCount "167"]
[EventDate "2022.08.12"]
[EventType "team-tourn"]
[EventRounds "7"]
[EventCountry "GER"]
[SourceTitle "playchess.com"]
[Source "ChessBase"]
[SourceQuality "1"]
[TimeControl "40/5400+30:1800+30"]

1. d4 {[%emt 0:00:02]} Nf6 {[%emt 0:00:40]} 2. Nf3 {[%emt 0:00:10]} d5 {[%emt 0:01:06]} 3. e3 {[%emt 0:00:12]} c5 {[%emt 0:00:48]} 4. c3 {[%emt 0:00:46]} c4 {[%emt 0:02:29]} 5. Nbd2 {[%emt 0:08:41]} b5 {[%emt 0:05:46]} 6. Qc2 {[%emt 0:11:34]} Bb7 {[%emt 0:06:26]} 7. Be2 {[%emt 0:06:10]} e6 {[%emt 0:05:49]} 8. O-O {[%emt 0:04:21]} Bd6 {[%emt 0:03:14]} 9. a4 {[%emt 0:10:48]} a6 {[%emt 0:04:08]} 10. Re1 {[%emt 0:03:31]} O-O {[%emt 0:03:07]} 11. b3 {[%emt 0:09:57]} Qc7 {[%emt 0:04:47]} 12. Ba3 {[%emt 0:01:54]} Bxa3 {[%emt 0:04:20]} 13. Rxa3 {[%emt 0:00:05]} Nbd7 {[%emt 0:00:41]} 14. Raa1 {[%emt 0:05:45]} Rfe8 {[%emt 0:03:12]} 15. Rab1 {[%emt 0:07:39]} e5 {[%emt 0:02:26]} 16. dxe5 {[%emt 0:01:59]} Nxe5 {[%emt 0:01:21]} 17. Nxe5 {[%emt 0:03:49]} Rxe5 {[%emt 0:03:22]} 18. axb5 {[%emt 0:02:11]} axb5 {[%emt 0:01:42]} 19. Nf3 {[%emt 0:00:27]} Ree8 {[%emt 0:02:27]} 20. Nd4 {[%emt 0:00:46]} Qd7 {[%emt 0:03:17]} 21. Qb2 {[%emt 0:01:35]} Bc6 {[%emt 0:02:35]} 22. Bf3 {[%emt 0:01:15]} Ne4 {[%emt 0:05:12]} 23. Ra1 {[%emt 0:01:31]} Rxa1 {[%emt 0:01:29]} 24. Rxa1 {[%emt 0:00:07]} cxb3 {[%emt 0:00:38]} 25. Qxb3 {[%emt 0:00:54]} Nd2 {[%emt 0:00:36]} 26. Qb2 {[%emt 0:00:35]} Nc4 {[%emt 0:02:26]} 27. Qb4 {[%emt 0:00:55]} Qb7 {[%emt 0:01:35]} 28. Qc5 {[%emt 0:03:14]} Ra8 {[%emt 0:02:14]} 29. Rxa8+ {[%emt 0:01:25]} Qxa8 {[%emt 0:00:45]} 30. h3 {[%emt 0:00:29]} Ne5 {[%emt 0:01:24]} 31. Nxc6 {[%emt 0:02:09]} Qxc6 {[%emt 0:00:42]} 32. Qxd5 {[%emt 0:02:05]} Qxd5 {[%emt 0:01:18]} 33. Bxd5 {[%emt 0:00:09]} Nc4 {[%emt 0:00:36]} 34. Bxc4 {[%emt 0:01:31]} bxc4 {[%emt 0:00:12]} 35. Kf1 {[%emt 0:00:10]} Kf8 {[%emt 0:00:18]} 36. Ke2 {[%emt 0:00:05]} Ke7 {[%emt 0:00:37]} 37. e4 {[%emt 0:00:25]} Kd6 {[%emt 0:00:38]} 38. Ke3 {[%emt 0:00:09]} Kc5 {[%emt 0:01:18]} 39. f4 {[%emt 0:01:53]} f6 {[%emt 0:01:56]} 40. g4 {[%emt 0:02:19]} g6 {[%emt 0:01:17]} 41. g5 {[%emt 0:01:54]} f5 {[%emt 0:00:41]} 42. e5 {[%emt 0:01:31]} Kd5 {[%emt 0:01:07]} 43. e6 {[%emt 0:00:49]} Kxe6 {[%emt 0:00:09]} 44. Kd4 {[%emt 0:00:05]} Kd6 {[%emt 0:00:08]} 45. Kxc4 {[%emt 0:00:06]} Kc6 {[%emt 0:00:19]} 46. h4 {[%emt 0:00:11]} Kd6 {[%emt 0:00:34]} 47. Kb5 {[%emt 0:01:16]} Kd5 {[%emt 0:00:52]} 48. c4+ {[%emt 0:00:05]} Ke4 {[%emt 0:00:04]} 49. c5 {[%emt 0:00:08]} Kxf4 {[%emt 0:00:02]} 50. c6 {[%emt 0:00:07]} Kg4 {[%emt 0:00:17]} 51. c7 {[%emt 0:00:06]} Kxh4 {[%emt 0:00:07]} 52. c8=Q {[%emt 0:00:07]} Kxg5 {[%emt 0:00:23]} 53. Qc1+ {[%emt 0:01:03]} f4 {[%emt 0:00:16]} 54. Qh1 {[%emt 0:00:54]} h5 {[%emt 0:00:23]} 55. Qg2+ {[%emt 0:00:23]} Kf5 {[%emt 0:00:17]} 56. Qc2+ {[%emt 0:00:31]} Kg5 {[%emt 0:00:09]} 57. Qg2+ {[%emt 0:01:49]} Kf5 {[%emt 0:30:45]} 58. Qh3+ {[%emt 0:30:24]} Kf6 {[%emt 0:01:00]} 59. Qh4+ {[%emt 0:00:25]} Kf5 {[%emt 0:01:06]} 60. Qh3+ {[%emt 0:00:28]} Kf6 {[%emt 0:00:15]} 61. Qc3+ {[%emt 0:00:06]} Kf5 {[%emt 0:00:30]} 62. Qc5+ {[%emt 0:00:57]} Kf6 {[%emt 0:00:23]} 63. Qd4+ {[%emt 0:00:14]} Kf5 {[%emt 0:00:16]} 64. Qd5+ {[%emt 0:00:29]} Kf6 {[%emt 0:00:55]} 65. Qd6+ {[%emt 0:01:40]} Kf5 {[%emt 0:01:04]} 66. Qd7+ {[%emt 0:01:17]} Kf6 {[%emt 0:00:43]} 67. Kc4 {[%emt 0:01:46]} Kg5 {[%emt 0:00:17]} 68. Qe7+ {[%emt 0:00:14]} Kg4 {[%emt 0:00:23]} 69. Qe6+ {[%emt 0:00:23]} Kg5 {[%emt 0:00:19]} 70. Qe5+ {[%emt 0:01:15]} Kg4 {[%emt 0:00:17]} 71. Qe6+ {[%emt 0:00:39]} Kg5 {[%emt 0:00:07]} 72. Qd5+ {[%emt 0:00:18]} Kg4 {[%emt 0:00:15]} 73. Qg2+ {[%emt 0:00:25]} Kf5 {[%emt 0:00:14]} 74. Kd3 {[%emt 0:00:00]} g5 {[%emt 0:00:00]} 75. Qh3+ {[%emt 0:00:00]} Kg6 {[%emt 0:00:00]} 76. Qe6+ {[%emt 0:00:00]} Kg7 {[%emt 0:00:00]} 77. Ke4 {[%emt 0:00:00]} h4 {[%emt 0:00:00]} 78. Kf3 {[%emt 0:00:00]} Kh7 {[%emt 0:00:00]} 79. Qf5+ {[%emt 0:00:00]} Kh6 {[%emt 0:00:00]} 80. Kg4 {[%emt 0:00:00]} h3 {[%emt 0:00:00]} 81. Qxg5+ {[%emt 0:00:00]} Kh7 {[%emt 0:00:00]} 82. Kf5 {[%emt 0:00:00]} h2 {[%emt 0:00:00]} 83. Kf6 {[%emt 0:00:00]} h1=Q {[%emt 0:00:00]} 84. Qg7# {[%emt 0:00:00]} 1-0

[Event "DVM U14 2021"]
[Site "Willingen"]
[Date "2022.08.16"]
[Round "7"]
[White "Finck, Jonathan"]
[Black "Gotfried, Elias"]
[Result "0-1"]
[ECO "C01"]
[WhiteElo "1424"]
[BlackElo "1589"]
[Annotator "NA RC"]
[PlyCount "119"]
[EventDate "2022.08.12"]
[EventType "team-tourn"]
[EventRounds "7"]
[EventCountry "GER"]
[SourceTitle "playchess.com"]
[Source "ChessBase"]
[SourceQuality "1"]
[TimeControl "40/5400+30:1800+30"]

1. e4 {[%emt 0:00:01]} e6 {[%emt 0:00:00]} 2. d4 {[%emt 0:00:04]} d5 {[%emt 0:00:11]} 3. exd5 {[%emt 0:00:06]} exd5 {[%emt 0:00:41]} 4. c4 {[%emt 0:00:57]} Nf6 {[%emt 0:00:53]} 5. Nc3 {[%emt 0:00:52]} c6 {[%emt 0:00:29]} 6. Bg5 {[%emt 0:02:38]} Be6 {[%emt 0:00:46]} 7. cxd5 {[%emt 0:04:45]} cxd5 {[%emt 0:02:15]} 8. Bb5+ {[%emt 0:01:39]} Nc6 {[%emt 0:01:37]} 9. Nf3 {[%emt 0:00:40]} Be7 {[%emt 0:00:38]} 10. O-O {[%emt 0:00:48]} O-O {[%emt 0:01:32]} 11. Re1 {[%emt 0:06:04]} Nd7 {[%emt 0:00:53]} 12. Bxe7 {[%emt 0:00:17]} Nxe7 {[%emt 0:00:57]} 13. Rc1 {[%emt 0:00:33]} Nb6 {[%emt 0:01:51]} 14. b3 {[%emt 0:03:40]} Bg4 {[%emt 0:02:31]} 15. Qd3 {[%emt 0:01:00]} a6 {[%emt 0:00:46]} 16. Ba4 {[%emt 0:01:02]} Nbc8 {[%emt 0:00:43]} 17. b4 {[%emt 0:00:12]} b5 {[%emt 0:01:04]} 18. Bb3 {[%emt 0:00:40]} Bf5 {[%emt 0:00:47]} 19. Qd2 {[%emt 0:00:48]} Nb6 {[%emt 0:01:31]} 20. Ne2 {[%emt 0:02:31]} Rc8 {[%emt 0:01:11]} 21. Ng3 {[%emt 0:02:23]} Bg6 {[%emt 0:03:12]} 22. Ne5 {[%emt 0:02:17]} f6 {[%emt 0:00:35]} 23. Nxg6 {[%emt 0:00:10]} Nxg6 {[%emt 0:02:16]} 24. Bc2 {[%emt 0:02:27]} Nc4 {[%emt 0:01:52]} 25. Qe2 {[%emt 0:06:29]} Qe8 {[%emt 0:01:00]} 26. Qh5 {[%emt 0:00:27]} Qf7 {[%emt 0:01:03]} 27. Nf5 {[%emt 0:01:58]} Rfe8 {[%emt 0:01:12]} 28. Nh4 {[%emt 0:02:00]} Nf8 {[%emt 0:02:03]} 29. Qxf7+ {[%emt 0:00:54]} Kxf7 {[%emt 0:01:31]} 30. Nf5 {[%emt 0:03:28]} g6 {[%emt 0:01:20]} 31. Ne3 {[%emt 0:01:52]} Red8 {[%emt 0:02:55]} 32. Bb1 {[%emt 0:01:37]} Ne6 {[%emt 0:02:14]} 33. Rcd1 {[%emt 0:11:13]} Ra8 {[%emt 0:03:50]} 34. Re2 {[%emt 0:05:22]} Rac8 {[%emt 0:03:31]} 35. Nc2 {[%emt 0:02:29]} Nf4 {[%emt 0:02:34]} 36. Ree1 {[%emt 0:00:22]} Nb2 {[%emt 0:00:31]} 37. Rd2 {[%emt 0:09:59]} Nc4 {[%emt 0:00:47]} 38. Rdd1 {[%emt 0:05:34]} Re8 {[%emt 0:02:46]} 39. a3 {[%emt 0:00:59]} Nb2 {[%emt 0:00:55]} 40. Rxe8 {[%emt 0:02:42]} Rxe8 {[%emt 0:02:07]} 41. Re1 {[%emt 0:30:58]} Rxe1+ {[%emt 0:30:10]} 42. Nxe1 {[%emt 0:00:04]} Nc4 {[%emt 0:01:13]} 43. Nc2 {[%emt 0:00:05]} Ne2+ {[%emt 0:02:14]} 44. Kf1 {[%emt 0:00:05]} Nc3 {[%emt 0:02:09]} 45. Ke1 {[%emt 0:00:27]} Nxb1 {[%emt 0:00:14]} 46. Ne3 {[%emt 0:00:11]} Nxe3 {[%emt 0:00:03]} 47. fxe3 {[%emt 0:00:09]} Nxa3 {[%emt 0:00:11]} 48. Kd2 {[%emt 0:00:05]} Nc4+ {[%emt 0:00:11]} 49. Kd3 {[%emt 0:00:07]} Ke6 {[%emt 0:00:44]} 50. e4 {[%emt 0:00:12]} dxe4+ {[%emt 0:00:11]} 51. Kxe4 {[%emt 0:00:05]} f5+ {[%emt 0:00:35]} 52. Kd3 {[%emt 0:00:07]} Kd5 {[%emt 0:00:34]} 53. h3 {[%emt 0:00:10]} g5 {[%emt 0:00:30]} 54. Kc3 {[%emt 0:00:08]} Ke4 {[%emt 0:00:17]} 55. g4 {[%emt 0:00:05]} f4 {[%emt 0:00:24]} 56. d5 {[%emt 0:00:24]} f3 {[%emt 0:00:06]} 57. d6 {[%emt 0:00:19]} f2 {[%emt 0:00:12]} 58. d7 {[%emt 0:00:07]} f1=Q {[%emt 0:00:17]} 59. d8=Q {[%emt 0:00:03]} Qc1+ 60. Kb3 {[%emt 0:00:30]} 0-1

[Event "DVM U14 2021"]
[Site "Willingen"]
[Date "2022.08.16"]
[Round "7"]
[White "Gloria, Fabian"]
[Black "Wegener, Moritz"]
[Result "1-0"]
[ECO "E70"]
[WhiteElo "1420"]
[BlackElo "1202"]
[Annotator "NA RC"]
[PlyCount "119"]
[EventDate "2022.08.12"]
[EventType "team-tourn"]
[EventRounds "7"]
[EventCountry "GER"]
[SourceTitle "playchess.com"]
[Source "ChessBase"]
[SourceQuality "1"]
[TimeControl "40/5400+30:1800+30"]

1. d4 {[%emt 0:00:39]} c5 {[%emt 0:00:38]} 2. d5 {[%emt 0:00:00]} d6 {[%emt 0:02:29]} 3. c4 {[%emt 0:00:10]} Nf6 {[%emt 0:01:47]} 4. Nc3 {[%emt 0:00:14]} g6 {[%emt 0:00:15]} 5. e4 {[%emt 0:00:10]} Bg7 {[%emt 0:00:39]} 6. Bd3 {[%emt 0:00:21]} e6 {[%emt 0:03:56]} 7. Nge2 {[%emt 0:01:12]} O-O {[%emt 0:00:44]} 8. O-O {[%emt 0:00:29]} Re8 {[%emt 0:02:39]} 9. Bg5 {[%emt 0:01:34]} h6 {[%emt 0:00:39]} 10. Be3 {[%emt 0:00:20]} Nbd7 {[%emt 0:01:28]} 11. f3 {[%emt 0:06:02]} Ne5 {[%emt 0:01:41]} 12. b3 {[%emt 0:02:15]} Nxd3 {[%emt 0:01:22]} 13. Qxd3 {[%emt 0:00:10]} a6 {[%emt 0:02:21]} 14. a4 {[%emt 0:02:08]} exd5 {[%emt 0:08:30]} 15. cxd5 {[%emt 0:01:13]} Rb8 {[%emt 0:01:51]} 16. Rab1 {[%emt 0:06:12]} b5 {[%emt 0:02:46]} 17. axb5 {[%emt 0:00:46]} axb5 {[%emt 0:00:14]} 18. b4 {[%emt 0:03:17]} c4 {[%emt 0:02:55]} 19. Qd2 {[%emt 0:01:52]} Kh7 {[%emt 0:01:58]} 20. Nd4 {[%emt 0:03:58]} Bd7 {[%emt 0:02:35]} 21. Ra1 {[%emt 0:02:19]} Rb7 {[%emt 0:05:09]} 22. Ra6 {[%emt 0:06:51]} Qc7 {[%emt 0:02:18]} 23. Bf4 {[%emt 0:02:50]} Bf8 {[%emt 0:00:12]} 24. Rfa1 {[%emt 0:01:16]} Rb6 {[%emt 0:04:54]} 25. Rxb6 {[%emt 0:04:50]} Qxb6 {[%emt 0:00:30]} 26. Ra5 {[%emt 0:02:29]} Rc8 {[%emt 0:03:47]} 27. Be3 {[%emt 0:10:23]} Qc7 {[%emt 0:04:32]} 28. Ndxb5 {[%emt 0:02:00]} Bxb5 {[%emt 0:00:15]} 29. Rxb5 {[%emt 0:00:20]} Ra8 {[%emt 0:00:19]} 30. Qb2 {[%emt 0:02:48]} Nd7 {[%emt 0:03:18]} 31. Nd1 {[%emt 0:09:39]} Bg7 {[%emt 0:03:09]} 32. Bd4 {[%emt 0:03:49]} Ne5 {[%emt 0:01:40]} 33. Qc3 {[%emt 0:06:12]} Ra6 {[%emt 0:02:21]} 34. Ne3 {[%emt 0:01:49]} Ra8 {[%emt 0:06:34]} 35. f4 {[%emt 0:04:55]} Nf3+ {[%emt 0:03:14]} 36. gxf3 {[%emt 0:01:07]} Bxd4 {[%emt 0:00:06]} 37. Qxd4 {[%emt 0:00:11]} c3 {[%emt 0:00:07]} 38. Qd3 {[%emt 0:02:21]} c2 {[%emt 0:02:10]} 39. Qxc2 {[%emt 0:02:51]} Ra1+ {[%emt 0:00:17]} 40. Kf2 {[%emt 0:00:49]} Qxc2+ {[%emt 0:00:13]} 41. Nxc2 {[%emt 0:30:05]} Ra2 {[%emt 0:30:06]} 42. Ke3 {[%emt 0:00:58]} Rxc2 {[%emt 0:00:09]} 43. Rb8 {[%emt 0:00:22]} Kg7 {[%emt 0:00:45]} 44. e5 {[%emt 0:01:13]} dxe5 {[%emt 0:00:13]} 45. fxe5 {[%emt 0:00:09]} Rc3+ {[%emt 0:00:12]} 46. Kd4 {[%emt 0:00:33]} Rxf3 {[%emt 0:00:14]} 47. d6 {[%emt 0:00:07]} Rf2 {[%emt 0:00:19]} 48. Kd5 {[%emt 0:01:12]} Rd2+ {[%emt 0:01:07]} 49. Kc6 {[%emt 0:00:34]} Rc2+ {[%emt 0:00:08]} 50. Kd7 {[%emt 0:00:45]} Re2 {[%emt 0:00:06]} 51. Rb5 {[%emt 0:00:14]} Kf8 {[%emt 0:00:08]} 52. Rd5 {[%emt 0:00:42]} Ra2 {[%emt 0:00:37]} 53. Ra5 {[%emt 0:01:22]} Rc2 {[%emt 0:00:46]} 54. Ra8+ {[%emt 0:00:22]} Kg7 {[%emt 0:00:10]} 55. b5 {[%emt 0:00:56]} Rc5 {[%emt 0:00:07]} 56. b6 {[%emt 0:00:08]} Rb5 {[%emt 0:00:14]} 57. Kc6 {[%emt 0:00:16]} Rxe5 {[%emt 0:00:49]} 58. b7 {[%emt 0:00:24]} Re2 {[%emt 0:00:21]} 59. b8=Q {[%emt 0:00:08]} Rc2+ {[%emt 0:00:17]} 60. Kd7 {[%emt 0:00:06]} 1-0

[Event "DVM U14 2021"]
[Site "Willingen"]
[Date "2022.08.16"]
[Round "7"]
[White "Rudolph, Alexander"]
[Black "Widmann, Maximilian"]
[Result "1/2-1/2"]
[ECO "B18"]
[WhiteElo "1417"]
[BlackElo "1573"]
[Annotator "NA RC"]
[PlyCount "82"]
[EventDate "2022.08.12"]
[EventType "team-tourn"]
[EventRounds "7"]
[EventCountry "GER"]
[SourceTitle "playchess.com"]
[Source "ChessBase"]
[SourceQuality "1"]
[TimeControl "40/5400+30:1800+30"]

1. e4 {[%emt 0:00:31]} c6 {[%emt 0:00:07]} 2. d4 {[%emt 0:01:00]} d5 {[%emt 0:00:22]} 3. Nc3 {[%emt 0:01:14]} dxe4 {[%emt 0:00:15]} 4. Nxe4 {[%emt 0:01:22]} Bf5 {[%emt 0:00:18]} 5. Ng3 {[%emt 0:01:22]} Bg6 {[%emt 0:00:11]} 6. Nh3 {[%emt 0:01:02]} h6 {[%emt 0:03:26]} 7. Nf4 {[%emt 0:01:59]} Bh7 {[%emt 0:03:05]} 8. c3 {[%emt 0:01:00]} e6 {[%emt 0:01:49]} 9. Bd3 {[%emt 0:02:28]} Bxd3 {[%emt 0:03:46]} 10. Qxd3 {[%emt 0:05:04]} Nf6 {[%emt 0:05:20]} 11. Bd2 {[%emt 0:02:46]} Bd6 {[%emt 0:03:14]} 12. O-O-O {[%emt 0:02:12]} Qc7 {[%emt 0:10:44]} 13. Nfh5 {[%emt 0:02:55]} Bxg3 {[%emt 0:20:12]} 14. Nxf6+ {[%emt 0:01:09]} gxf6 {[%emt 0:00:40]} 15. hxg3 {[%emt 0:00:11]} Nd7 {[%emt 0:12:04]} 16. Rxh6 {[%emt 0:02:00]} Rxh6 {[%emt 0:04:16]} 17. Bxh6 {[%emt 0:01:05]} O-O-O {[%emt 0:01:11]} 18. Bg7 {[%emt 0:02:12]} Qa5 {[%emt 0:03:48]} 19. Kb1 {[%emt 0:04:02]} Qd5 {[%emt 0:03:27]} 20. Rg1 {[%emt 0:07:38]} c5 {[%emt 0:05:19]} 21. Qe3 {[%emt 0:03:15]} Qf5+ {[%emt 0:04:10]} 22. Ka1 {[%emt 0:01:11]} b6 {[%emt 0:01:45]} 23. Bh6 {[%emt 0:05:59]} Kb7 {[%emt 0:02:19]} 24. Qf3+ {[%emt 0:09:16]} Qxf3 {[%emt 0:00:19]} 25. gxf3 {[%emt 0:00:16]} cxd4 {[%emt 0:00:48]} 26. cxd4 {[%emt 0:03:10]} Rc8 {[%emt 0:01:08]} 27. Kb1 {[%emt 0:02:30]} b5 {[%emt 0:01:57]} 28. Re1 {[%emt 0:03:23]} Nb6 {[%emt 0:01:24]} 29. Rc1 {[%emt 0:03:18]} Rxc1+ {[%emt 0:01:00]} 30. Kxc1 {[%emt 0:00:35]} Kc6 {[%emt 0:00:44]} 31. Kc2 {[%emt 0:01:41]} Nd5 {[%emt 0:02:10]} 32. Bd2 {[%emt 0:01:00]} f5 {[%emt 0:02:22]} 33. Kd3 {[%emt 0:00:53]} Kd6 {[%emt 0:01:03]} 34. f4 {[%emt 0:00:00]} Ke7 {[%emt 0:00:10]} 35. b3 {[%emt 0:00:43]} a6 {[%emt 0:00:28]} 36. f3 {[%emt 0:00:49]} f6 {[%emt 0:00:41]} 37. g4 {[%emt 0:00:50]} Kf7 {[%emt 0:01:17]} 38. a4 {[%emt 0:01:04]} Kg6 {[%emt 0:00:46]} 39. a5 {[%emt 0:04:20]} fxg4 {[%emt 0:01:05]} 40. fxg4 {[%emt 0:00:41]} f5 {[%emt 0:00:19]} 41. g5 {[%emt 0:02:06]} Kh5 {[%emt 0:00:02]} 1/2-1/2

[Event "DVM U14 2021"]
[Site "Willingen"]
[Date "2022.08.16"]
[Round "7"]
[White "Bade, Deniz"]
[Black "Trenz, Finn"]
[Result "1/2-1/2"]
[ECO "B01"]
[WhiteElo "1414"]
[BlackElo "1667"]
[Annotator "NA RC"]
[PlyCount "56"]
[EventDate "2022.08.12"]
[EventType "team-tourn"]
[EventRounds "7"]
[EventCountry "GER"]
[SourceTitle "playchess.com"]
[Source "ChessBase"]
[SourceQuality "1"]
[TimeControl "40/5400+30:1800+30"]

1. e4 {[%emt 0:00:12]} d5 {[%emt 0:00:00]} 2. exd5 {[%emt 0:00:04]} Qxd5 {[%emt 0:00:00]} 3. Nc3 {[%emt 0:00:06]} Qd6 {[%emt 0:00:00]} 4. d4 {[%emt 0:00:06]} Nf6 {[%emt 0:00:09]} 5. Nf3 {[%emt 0:01:10]} a6 {[%emt 0:01:00]} 6. g3 {[%emt 0:01:43]} Bg4 {[%emt 0:01:26]} 7. h3 {[%emt 0:03:29]} Bh5 {[%emt 0:00:51]} 8. Bg2 {[%emt 0:01:17]} c6 {[%emt 0:04:39]} 9. Bf4 {[%emt 0:08:22]} Qd8 {[%emt 0:02:53]} 10. O-O {[%emt 0:00:24]} e6 {[%emt 0:02:42]} 11. Re1 {[%emt 0:01:23]} Bd6 {[%emt 0:11:00]} 12. Qd2 {[%emt 0:05:13]} Bxf4 {[%emt 0:00:07]} 13. Qxf4 {[%emt 0:01:56]} O-O {[%emt 0:04:48]} 14. Ne5 {[%emt 0:04:00]} Nbd7 {[%emt 0:10:59]} 15. Qh4 {[%emt 0:02:56]} Bg6 {[%emt 0:01:27]} 16. Nxg6 {[%emt 0:00:07]} hxg6 {[%emt 0:10:19]} 17. a4 {[%emt 0:13:49]} Qb6 {[%emt 0:02:08]} 18. b3 {[%emt 0:03:03]} Rac8 {[%emt 0:12:55]} 19. Rad1 {[%emt 0:07:29]} Qb4 {[%emt 0:02:00]} 20. Ne4 {[%emt 0:04:47]} Nxe4 {[%emt 0:00:39]} 21. Qxe4 {[%emt 0:01:17]} Nf6 {[%emt 0:04:45]} 22. Qe5 {[%emt 0:07:07]} c5 {[%emt 0:03:22]} 23. dxc5 {[%emt 0:02:31]} Rxc5 {[%emt 0:00:07]} 24. Qd4 {[%emt 0:06:25]} Qxd4 {[%emt 0:00:16]} 25. Rxd4 {[%emt 0:01:14]} b5 {[%emt 0:02:47]} 26. axb5 {[%emt 0:00:16]} axb5 {[%emt 0:01:20]} 27. c4 {[%emt 0:01:30]} bxc4 {[%emt 0:01:23]} 28. Rxc4 {[%emt 2:51:39]} Rb5 {[%emt 0:00:09]} 1/2-1/2

[Event "DVM U14 2021"]
[Site "Willingen"]
[Date "2022.08.16"]
[Round "7"]
[White "Fettig, Michel"]
[Black "Martin Fernandez, Rafael"]
[Result "1-0"]
[ECO "E72"]
[WhiteElo "1370"]
[BlackElo "1645"]
[Annotator "NA RC"]
[PlyCount "107"]
[EventDate "2022.08.12"]
[EventType "team-tourn"]
[EventRounds "7"]
[EventCountry "GER"]
[SourceTitle "playchess.com"]
[Source "ChessBase"]
[SourceQuality "1"]
[TimeControl "40/5400+30:1800+30"]

1. c4 {[%emt 0:02:33]} Nf6 {[%emt 0:02:28]} 2. g3 {[%emt 0:00:31]} g6 {[%emt 0:01:15]} 3. Bg2 {[%emt 0:00:14]} Bg7 {[%emt 0:00:57]} 4. d4 {[%emt 0:01:23]} c5 {[%emt 0:01:33]} 5. d5 {[%emt 0:02:10]} d6 {[%emt 0:02:45]} 6. Nc3 {[%emt 0:01:42]} O-O {[%emt 0:03:02]} 7. e4 {[%emt 0:04:48]} e6 {[%emt 0:03:47]} 8. Nge2 {[%emt 0:00:15]} exd5 {[%emt 0:02:56]} 9. exd5 {[%emt 0:02:25]} Re8 {[%emt 0:04:08]} 10. O-O {[%emt 0:00:37]} Nbd7 {[%emt 0:01:45]} 11. Bf4 {[%emt 0:01:38]} Ne5 {[%emt 0:03:01]} 12. Bxe5 {[%emt 0:00:19]} Rxe5 {[%emt 0:02:16]} 13. Nf4 {[%emt 0:03:35]} Bg4 {[%emt 0:02:34]} 14. Qd2 {[%emt 0:00:40]} Qe7 {[%emt 0:06:55]} 15. Nd3 {[%emt 0:00:36]} Rh5 {[%emt 0:00:30]} 16. Nf4 {[%emt 0:04:15]} Bh6 {[%emt 0:02:16]} 17. Rfe1 {[%emt 0:00:39]} Qd7 {[%emt 0:00:23]} 18. Nxh5 {[%emt 0:08:46]} Bxd2 {[%emt 0:00:11]} 19. Nxf6+ {[%emt 0:00:06]} Kg7 {[%emt 0:00:03]} 20. Nxd7 {[%emt 0:00:15]} Bxe1 {[%emt 0:00:23]} 21. Rxe1 {[%emt 0:00:05]} Bxd7 {[%emt 0:00:31]} 22. Ne4 {[%emt 0:05:11]} Re8 {[%emt 0:01:13]} 23. Kf1 {[%emt 0:00:22]} Bf5 {[%emt 0:02:10]} 24. f4 {[%emt 0:02:03]} Bxe4 {[%emt 0:00:52]} 25. Rxe4 {[%emt 0:00:05]} Rxe4 {[%emt 0:00:10]} 26. Bxe4 {[%emt 0:00:06]} f5 {[%emt 0:00:33]} 27. Bc2 {[%emt 0:01:33]} Kf6 {[%emt 0:00:43]} 28. Kf2 {[%emt 0:01:26]} h6 {[%emt 0:00:31]} 29. h4 {[%emt 0:00:07]} h5 {[%emt 0:00:35]} 30. a3 {[%emt 0:04:17]} a6 {[%emt 0:00:29]} 31. b4 {[%emt 0:00:20]} b6 {[%emt 0:02:18]} 32. Ke3 {[%emt 0:00:33]} Ke7 {[%emt 0:00:25]} 33. Ba4 {[%emt 0:08:13]} a5 {[%emt 0:00:17]} 34. bxa5 {[%emt 0:00:30]} bxa5 {[%emt 0:00:17]} 35. Kd3 {[%emt 0:00:05]} Kd8 {[%emt 0:00:02]} 36. Kc3 {[%emt 0:00:17]} Ke7 {[%emt 0:00:08]} 37. Bc6 {[%emt 0:00:32]} Kd8 {[%emt 0:00:08]} 38. Kb3 {[%emt 0:00:13]} Ke7 {[%emt 0:00:01]} 39. Ka4 {[%emt 0:01:16]} Kd8 {[%emt 0:00:24]} 40. Kxa5 {[%emt 0:00:56]} Kc7 {[%emt 0:00:09]} 41. Be8 {[%emt 0:30:03]} Kb7 {[%emt 0:30:13]} 42. Bxg6 {[%emt 0:00:05]} Kc7 {[%emt 0:00:07]} 43. Bxh5 {[%emt 0:00:03]} Kd7 {[%emt 0:00:33]} 44. Kb6 {[%emt 0:00:03]} Ke7 {[%emt 0:00:15]} 45. a4 {[%emt 0:00:04]} Kd7 {[%emt 0:00:08]} 46. Kb7 {[%emt 0:00:02]} Ke7 {[%emt 0:00:11]} 47. a5 {[%emt 0:00:03]} Kd7 {[%emt 0:00:07]} 48. a6 {[%emt 0:00:04]} Ke7 {[%emt 0:00:19]} 49. a7 {[%emt 0:00:09]} Kf6 {[%emt 0:00:18]} 50. a8=Q {[%emt 0:00:06]} Kg7 {[%emt 0:00:37]} 51. Bg6 {[%emt 0:00:18]} Kf6 {[%emt 0:00:39]} 52. Qe8 {[%emt 0:00:06]} Kg7 {[%emt 0:00:04]} 53. Qf7+ {[%emt 0:00:07]} Kh6 {[%emt 0:00:11]} 54. Qh7# {[%emt 0:00:32]} 1-0

[Event "DVM U14 2021"]
[Site "Willingen"]
[Date "2022.08.16"]
[Round "7"]
[White "Keck, Johannes"]
[Black "Herfurt, Manuel"]
[Result "1/2-1/2"]
[ECO "D02"]
[WhiteElo "1310"]
[BlackElo "1656"]
[Annotator "NA RC"]
[PlyCount "41"]
[EventDate "2022.08.12"]
[EventType "team-tourn"]
[EventRounds "7"]
[EventCountry "GER"]
[SourceTitle "playchess.com"]
[Source "ChessBase"]
[SourceQuality "1"]
[TimeControl "40/5400+30:1800+30"]

1. Nf3 {[%emt 0:00:35]} d5 {[%emt 0:00:05]} 2. g3 {[%emt 0:00:33]} c5 {[%emt 0:00:10]} 3. Bg2 {[%emt 0:00:45]} Nc6 {[%emt 0:00:31]} 4. O-O {[%emt 0:02:24]} Nf6 {[%emt 0:00:26]} 5. d4 {[%emt 0:00:57]} cxd4 {[%emt 0:07:35]} 6. Nxd4 {[%emt 0:01:19]} e5 {[%emt 0:01:17]} 7. Nxc6 {[%emt 0:00:20]} bxc6 {[%emt 0:00:07]} 8. c4 {[%emt 0:00:10]} Be6 {[%emt 0:10:13]} 9. Nc3 {[%emt 0:00:59]} Qd7 {[%emt 0:05:15]} 10. Qa4 {[%emt 0:02:48]} Rc8 {[%emt 0:01:15]} 11. cxd5 {[%emt 0:03:22]} cxd5 {[%emt 0:02:20]} 12. Qxd7+ {[%emt 0:00:43]} Kxd7 {[%emt 0:00:09]} 13. Rd1 {[%emt 0:02:16]} Kc6 {[%emt 0:03:28]} 14. Bg5 {[%emt 0:03:00]} Bb4 {[%emt 0:08:00]} 15. Bxf6 {[%emt 0:17:39]} Bxc3 {[%emt 0:01:13]} 16. bxc3 {[%emt 0:02:48]} gxf6 {[%emt 0:00:12]} 17. c4 {[%emt 0:00:15]} Kd6 {[%emt 0:19:39]} 18. cxd5 {[%emt 0:10:27]} Bd7 {[%emt 0:01:36]} 19. Rd2 {[%emt 0:10:01]} Rc5 {[%emt 0:03:06]} 20. Rb1 {[%emt 0:05:16]} Rhc8 {[%emt 0:02:52]} 21. f4 {[%emt 0:11:50]} 1/2-1/2